[Event "Late-Titled-Tuesday-Blitz-February-20-2024"]
[Site "Chess.com"]
[Date "2024.02.20"]
[Round "5"]
[White "GolfBeforeChess"]
[Black "bilosuvenosu06"]
[Result "1/2-1/2"]
[WhiteElo "2299"]
[BlackElo "2499"]
[TimeControl "180+1"]
[EndTime "14:56:18 PST"]
[Termination "Game drawn - insufficient material"]

1. Nf3 {[%clk 0:03:00.9]} 1... d5 {[%clk 0:02:58.8]} 2. b3 {[%clk 0:03:00.5]}
2... Nf6 {[%clk 0:02:57.1]} 3. Bb2 {[%clk 0:03:00.7]} 3... Bf5 {[%clk
0:02:57.3]} 4. g3 {[%clk 0:03:00.7]} 4... e6 {[%clk 0:02:57.7]} 5. Bg2 {[%clk
0:03:01.3]} 5... Bd6 {[%clk 0:02:58.4]} 6. c4 {[%clk 0:03:01.7]} 6... O-O {[%clk
0:02:59.2]} 7. O-O {[%clk 0:03:01.5]} 7... c6 {[%clk 0:02:59.5]} 8. d3 {[%clk
0:03:01.7]} 8... Nbd7 {[%clk 0:02:59.4]} 9. Nbd2 {[%clk 0:03:02.2]} 9... h6
{[%clk 0:02:59.9]} 10. Rc1 {[%clk 0:03:00.7]} 10... Bh7 {[%clk 0:02:58.4]} 11.
Rc2 {[%clk 0:03:00.3]} 11... Qe7 {[%clk 0:02:58.8]} 12. Qa1 {[%clk 0:02:59]}
12... Rfe8 {[%clk 0:02:58.3]} 13. Ne5 {[%clk 0:02:56.4]} 13... Nxe5 {[%clk
0:02:57.3]} 14. Bxe5 {[%clk 0:02:55.9]} 14... Bxe5 {[%clk 0:02:57.7]} 15. Qxe5
{[%clk 0:02:55.1]} 15... Nd7 {[%clk 0:02:58.1]} 16. Qb2 {[%clk 0:02:54.8]} 16...
Rac8 {[%clk 0:02:52.4]} 17. b4 {[%clk 0:02:54.4]} 17... Qd6 {[%clk 0:02:47.9]}
18. Rfc1 {[%clk 0:02:51.9]} 18... a6 {[%clk 0:02:44.9]} 19. a4 {[%clk
0:02:51.4]} 19... Rcd8 {[%clk 0:02:38.3]} 20. b5 {[%clk 0:02:47.5]} 20... axb5
{[%clk 0:02:32.3]} 21. axb5 {[%clk 0:02:47.5]} 21... c5 {[%clk 0:02:30.2]} 22.
cxd5 {[%clk 0:02:35.4]} 22... exd5 {[%clk 0:02:30]} 23. Nf1 {[%clk 0:02:23.4]}
23... b6 {[%clk 0:02:23.9]} 24. Ne3 {[%clk 0:02:20.2]} 24... Nf6 {[%clk
0:02:23.8]} 25. Ra1 {[%clk 0:02:17.9]} 25... Ra8 {[%clk 0:02:23.5]} 26. Rcc1
{[%clk 0:02:13.6]} 26... Qe6 {[%clk 0:02:10.4]} 27. Qb3 {[%clk 0:01:56.3]} 27...
Rxa1 {[%clk 0:02:01.7]} 28. Rxa1 {[%clk 0:01:54.6]} 28... Qe5 {[%clk 0:01:51.1]}
29. Ra2 {[%clk 0:01:44.6]} 29... Rd8 {[%clk 0:01:36.2]} 30. Bf3 {[%clk
0:01:43.8]} 30... Bg6 {[%clk 0:01:35.7]} 31. Ra6 {[%clk 0:01:42.2]} 31... Rd6
{[%clk 0:01:30.2]} 32. Ra8+ {[%clk 0:01:24.8]} 32... Kh7 {[%clk 0:01:29.3]} 33.
Ra7 {[%clk 0:01:25.5]} 33... Qe6 {[%clk 0:01:08.3]} 34. Kg2 {[%clk 0:01:24.7]}
34... Qe8 {[%clk 0:00:19.9]} 35. Ra2 {[%clk 0:01:14.6]} 35... d4 {[%clk
0:00:19.2]} 36. Nc4 {[%clk 0:01:13.5]} 36... Re6 {[%clk 0:00:19.6]} 37. Ra6
{[%clk 0:01:11]} 37... Qd8 {[%clk 0:00:18.4]} 38. Qa2 {[%clk 0:01:01.6]} 38...
Bh5 {[%clk 0:00:18.3]} 39. Ra8 {[%clk 0:00:56.5]} 39... Qe7 {[%clk 0:00:17.7]}
40. Qa7 {[%clk 0:00:54.8]} 40... Qxa7 {[%clk 0:00:17.2]} 41. Rxa7 {[%clk
0:00:54.7]} 41... Bxf3+ {[%clk 0:00:17.9]} 42. Kxf3 {[%clk 0:00:53.6]} 42... Kg6
{[%clk 0:00:15.4]} 43. Rb7 {[%clk 0:00:53.6]} 43... Nd5 {[%clk 0:00:15.4]} 44.
e4 {[%clk 0:00:49.7]} 44... Nc3 {[%clk 0:00:15.1]} 45. Rxb6 {[%clk 0:00:47.5]}
45... Rxb6 {[%clk 0:00:14.6]} 46. Nxb6 {[%clk 0:00:47.6]} 46... Nxb5 {[%clk
0:00:15.5]} 47. Nd7 {[%clk 0:00:47.6]} 47... c4 {[%clk 0:00:15.2]} 48. dxc4
{[%clk 0:00:46.5]} 48... Nd6 {[%clk 0:00:14.8]} 49. c5 {[%clk 0:00:45.1]} 49...
Nc4 {[%clk 0:00:15.5]} 50. c6 {[%clk 0:00:43.4]} 50... f6 {[%clk 0:00:11.4]} 51.
Nc5 {[%clk 0:00:41.7]} 51... Kf7 {[%clk 0:00:10.9]} 52. Ke2 {[%clk 0:00:39.7]}
52... Ke7 {[%clk 0:00:08.3]} 53. Kd3 {[%clk 0:00:39.4]} 53... Ne5+ {[%clk
0:00:08.7]} 54. Kxd4 {[%clk 0:00:39]} 54... Nxc6+ {[%clk 0:00:09.6]} 55. Ke3
{[%clk 0:00:39.2]} 55... Kd6 {[%clk 0:00:09.5]} 56. Nd3 {[%clk 0:00:38.4]} 56...
Ke6 {[%clk 0:00:09.6]} 57. f4 {[%clk 0:00:38.5]} 57... Ne7 {[%clk 0:00:08.9]}
58. Nb4 {[%clk 0:00:37.9]} 58... Kd6 {[%clk 0:00:09.1]} 59. Kd4 {[%clk
0:00:37.2]} 59... g5 {[%clk 0:00:09.2]} 60. Nd5 {[%clk 0:00:36.7]} 60... Nc6+
{[%clk 0:00:09.2]} 61. Ke3 {[%clk 0:00:35.8]} 61... f5 {[%clk 0:00:09.5]} 62.
fxg5 {[%clk 0:00:34.2]} 62... hxg5 {[%clk 0:00:09.7]} 63. Nc3 {[%clk 0:00:31.6]}
63... Ke5 {[%clk 0:00:09.6]} 64. exf5 {[%clk 0:00:31]} 64... Kxf5 {[%clk
0:00:10.5]} 65. h4 {[%clk 0:00:30.9]} 65... gxh4 {[%clk 0:00:10]} 66. gxh4
{[%clk 0:00:31.2]} 66... Kg4 {[%clk 0:00:10.9]} 67. Ne4 {[%clk 0:00:30.3]} 67...
Kxh4 {[%clk 0:00:11.1]} 1/2-1/2

[Event "Late-Titled-Tuesday-Blitz-February-20-2024"]
[Site "Chess.com"]
[Date "2024.02.20"]
[Round "5"]
[White "AlexeiShirov"]
[Black "ozates"]
[Result "1/2-1/2"]
[WhiteElo "2841"]
[BlackElo "2603"]
[TimeControl "180+1"]
[EndTime "14:56:21 PST"]
[Termination "Game drawn by repetition"]

1. e4 {[%clk 0:03:00.9]} 1... c5 {[%clk 0:02:58.2]} 2. Nf3 {[%clk 0:03:00.3]}
2... Nc6 {[%clk 0:02:58.7]} 3. d4 {[%clk 0:03:00.3]} 3... cxd4 {[%clk
0:02:59.6]} 4. Nxd4 {[%clk 0:03:00.5]} 4... e5 {[%clk 0:02:59.9]} 5. Nb5 {[%clk
0:03:00.4]} 5... d6 {[%clk 0:02:59.9]} 6. c4 {[%clk 0:02:57.4]} 6... Be6 {[%clk
0:02:58.7]} 7. b3 {[%clk 0:02:43.3]} 7... a6 {[%clk 0:02:55]} 8. N5c3 {[%clk
0:02:42.5]} 8... g6 {[%clk 0:02:55.5]} 9. Nd5 {[%clk 0:02:38.5]} 9... Bg7 {[%clk
0:02:50.7]} 10. Nbc3 {[%clk 0:02:37.2]} 10... Nge7 {[%clk 0:02:43.1]} 11. Bg5
{[%clk 0:02:33.4]} 11... O-O {[%clk 0:02:43]} 12. Be2 {[%clk 0:02:22.7]} 12...
Rb8 {[%clk 0:02:33]} 13. O-O {[%clk 0:02:21]} 13... h6 {[%clk 0:02:24.3]} 14.
Be3 {[%clk 0:02:17.3]} 14... f5 {[%clk 0:02:21.1]} 15. Bb6 {[%clk 0:02:06.9]}
15... Qd7 {[%clk 0:02:19.5]} 16. Qd3 {[%clk 0:02:00.6]} 16... Nd4 {[%clk
0:02:07.7]} 17. Rad1 {[%clk 0:01:53.3]} 17... Nec6 {[%clk 0:02:00.7]} 18. Rfe1
{[%clk 0:01:51.2]} 18... f4 {[%clk 0:01:58.2]} 19. f3 {[%clk 0:01:40.9]} 19...
g5 {[%clk 0:01:55.6]} 20. Bf1 {[%clk 0:01:35.2]} 20... g4 {[%clk 0:01:54]} 21.
Ne2 {[%clk 0:01:34.4]} 21... gxf3 {[%clk 0:01:43.2]} 22. gxf3 {[%clk 0:01:34]}
22... Kh8 {[%clk 0:01:29.9]} 23. Kh1 {[%clk 0:01:33]} 23... Qf7 {[%clk 0:01:05]}
24. Bg2 {[%clk 0:01:20.7]} 24... Rg8 {[%clk 0:01:01.4]} 25. Rg1 {[%clk
0:01:19.9]} 25... Rbf8 {[%clk 0:00:52.4]} 26. Bxd4 {[%clk 0:01:17.1]} 26... Nxd4
{[%clk 0:00:49.7]} 27. Nxd4 {[%clk 0:01:16.4]} 27... exd4 {[%clk 0:00:50.6]} 28.
Bf1 {[%clk 0:01:10.8]} 28... Be5 {[%clk 0:00:50]} 29. Rd2 {[%clk 0:01:03.7]}
29... Rxg1+ {[%clk 0:00:48.5]} 30. Kxg1 {[%clk 0:01:03.2]} 30... Qh5 {[%clk
0:00:35.5]} 31. Kh1 {[%clk 0:00:59.1]} 31... Qh4 {[%clk 0:00:21.2]} 32. Rg2
{[%clk 0:00:55.7]} 32... Bh3 {[%clk 0:00:20.1]} 33. Rg1 {[%clk 0:00:55.3]} 33...
Be6 {[%clk 0:00:16.3]} 34. a4 {[%clk 0:00:52]} 34... Rg8 {[%clk 0:00:15.8]} 35.
Rxg8+ {[%clk 0:00:48.1]} 35... Bxg8 {[%clk 0:00:16.7]} 36. Qd2 {[%clk
0:00:43.6]} 36... Be6 {[%clk 0:00:16.2]} 37. b4 {[%clk 0:00:42]} 37... Bh3
{[%clk 0:00:13.7]} 38. Bxh3 {[%clk 0:00:40.3]} 38... Qxh3 {[%clk 0:00:14.6]} 39.
Qg2 {[%clk 0:00:39.3]} 39... Qh4 {[%clk 0:00:12.9]} 40. Qf1 {[%clk 0:00:37.7]}
40... Kh7 {[%clk 0:00:09.7]} 41. b5 {[%clk 0:00:36.8]} 41... axb5 {[%clk
0:00:08.8]} 42. cxb5 {[%clk 0:00:36.6]} 42... Qd8 {[%clk 0:00:08.2]} 43. Qh3
{[%clk 0:00:34.4]} 43... Qa5 {[%clk 0:00:06.4]} 44. Qd7+ {[%clk 0:00:33.2]}
44... Kh8 {[%clk 0:00:05.5]} 45. Qe8+ {[%clk 0:00:32.4]} 45... Kh7 {[%clk
0:00:05.8]} 46. Qf7+ {[%clk 0:00:31.8]} 46... Kh8 {[%clk 0:00:05.2]} 47. Qe8+
{[%clk 0:00:28.1]} 47... Kh7 {[%clk 0:00:05.4]} 48. Qd7+ {[%clk 0:00:27.9]}
48... Kh8 {[%clk 0:00:05.6]} 49. Qc8+ {[%clk 0:00:27.4]} 49... Kh7 {[%clk
0:00:05.8]} 50. Qxb7+ {[%clk 0:00:26.8]} 50... Kg6 {[%clk 0:00:06.5]} 51. Qd7
{[%clk 0:00:13]} 51... Qe1+ {[%clk 0:00:06]} 52. Kg2 {[%clk 0:00:13]} 52... Qe2+
{[%clk 0:00:06.4]} 53. Kg1 {[%clk 0:00:13.1]} 53... Qe1+ {[%clk 0:00:06.8]} 54.
Kg2 {[%clk 0:00:13.3]} 54... Qe2+ {[%clk 0:00:07.3]} 55. Kg1 {[%clk 0:00:13.4]}
55... Qe1+ {[%clk 0:00:07.6]} 56. Kg2 {[%clk 0:00:13.6]} 1/2-1/2

[Event "Late-Titled-Tuesday-Blitz-February-20-2024"]
[Site "Chess.com"]
[Date "2024.02.20"]
[Round "5"]
[White "campochess"]
[Black "Bilan_Danila"]
[Result "0-1"]
[WhiteElo "2166"]
[BlackElo "2466"]
[TimeControl "180+1"]
[EndTime "14:56:22 PST"]
[Termination "Bilan_Danila won on time"]

1. Nf3 {[%clk 0:02:59.8]} 1... d5 {[%clk 0:02:57.7]} 2. b3 {[%clk 0:02:59.5]}
2... Nf6 {[%clk 0:02:57.7]} 3. Bb2 {[%clk 0:02:59.4]} 3... c5 {[%clk 0:02:58.5]}
4. e3 {[%clk 0:02:58.8]} 4... Nc6 {[%clk 0:02:58.7]} 5. Bb5 {[%clk 0:02:58.6]}
5... Qb6 {[%clk 0:02:57.9]} 6. a4 {[%clk 0:02:56.5]} 6... g6 {[%clk 0:02:53.4]}
7. Nc3 {[%clk 0:02:54.6]} 7... e6 {[%clk 0:02:41]} 8. Ne5 {[%clk 0:02:33.1]}
8... Bg7 {[%clk 0:02:32.2]} 9. a5 {[%clk 0:02:28.5]} 9... Qc7 {[%clk 0:02:30.3]}
10. Nxc6 {[%clk 0:02:26.1]} 10... bxc6 {[%clk 0:02:30.1]} 11. Be2 {[%clk
0:02:22.8]} 11... O-O {[%clk 0:02:28.8]} 12. O-O {[%clk 0:02:22]} 12... e5
{[%clk 0:02:17.7]} 13. Ra4 {[%clk 0:02:19.9]} 13... e4 {[%clk 0:01:47.9]} 14. h3
{[%clk 0:02:16.3]} 14... Nd7 {[%clk 0:01:40.5]} 15. Qa1 {[%clk 0:02:14.1]} 15...
Ne5 {[%clk 0:01:33.6]} 16. Nd1 {[%clk 0:02:13.3]} 16... f5 {[%clk 0:01:30.3]}
17. b4 {[%clk 0:02:09.2]} 17... c4 {[%clk 0:01:19.4]} 18. Bd4 {[%clk 0:02:05.5]}
18... f4 {[%clk 0:01:02.7]} 19. exf4 {[%clk 0:01:58.6]} 19... Rxf4 {[%clk
0:01:03.6]} 20. Ne3 {[%clk 0:01:58.4]} 20... Bd7 {[%clk 0:00:59.2]} 21. Ra2
{[%clk 0:01:50.5]} 21... Raf8 {[%clk 0:00:58.4]} 22. b5 {[%clk 0:01:44.7]} 22...
c5 {[%clk 0:00:34.9]} 23. Nxd5 {[%clk 0:01:42.1]} 23... Qd6 {[%clk 0:00:34.8]}
24. Bxe5 {[%clk 0:01:36.5]} 24... Bxe5 {[%clk 0:00:33.4]} 25. Nc3 {[%clk
0:01:24.4]} 25... Bd4 {[%clk 0:00:25.5]} 26. Bxc4+ {[%clk 0:01:22.7]} 26... Be6
{[%clk 0:00:18.3]} 27. Bxe6+ {[%clk 0:01:21.3]} 27... Qxe6 {[%clk 0:00:19.2]}
28. Ra4 {[%clk 0:01:06]} 28... Bxf2+ {[%clk 0:00:06.7]} 29. Kh1 {[%clk
0:01:04.8]} 29... Bd4 {[%clk 0:00:05.7]} 30. Rxf4 {[%clk 0:00:59.9]} 30... Rxf4
{[%clk 0:00:06.6]} 31. Qe1 {[%clk 0:00:48.2]} 31... Qf6 {[%clk 0:00:02.6]} 32.
Ra1 {[%clk 0:00:43.3]} 32... Kg7 {[%clk 0:00:02.8]} 33. b6 {[%clk 0:00:39.2]}
33... axb6 {[%clk 0:00:02.6]} 34. axb6 {[%clk 0:00:38.6]} 34... Qxb6 {[%clk
0:00:02.7]} 35. Nxe4 {[%clk 0:00:37.4]} 35... Qe6 {[%clk 0:00:01.6]} 36. d3
{[%clk 0:00:37.4]} 36... Qf7 {[%clk 0:00:01.6]} 37. c3 {[%clk 0:00:34.7]} 37...
Be5 {[%clk 0:00:01.6]} 38. Qe2 {[%clk 0:00:31.6]} 38... Bc7 {[%clk 0:00:01.6]}
39. Re1 {[%clk 0:00:24.5]} 39... Rf5 {[%clk 0:00:01.7]} 40. Qe3 {[%clk
0:00:23.5]} 40... Qd5 {[%clk 0:00:02]} 41. c4 {[%clk 0:00:20.3]} 41... Qe5
{[%clk 0:00:02.5]} 42. g3 {[%clk 0:00:14.1]} 42... h5 {[%clk 0:00:03]} 43. Rg1
{[%clk 0:00:03.7]} 43... Qe6 {[%clk 0:00:02.9]} 44. Qd2 {[%clk 0:00:01.9]} 44...
Re5 {[%clk 0:00:03.3]} 0-1

[Event "Late-Titled-Tuesday-Blitz-February-20-2024"]
[Site "Chess.com"]
[Date "2024.02.20"]
[Round "5"]
[White "Zkid"]
[Black "Grischuk"]
[Result "1-0"]
[WhiteElo "2939"]
[BlackElo "3068"]
[TimeControl "180+1"]
[EndTime "14:56:23 PST"]
[Termination "Zkid won on time"]

1. e4 {[%clk 0:03:00.9]} 1... e5 {[%clk 0:02:59.6]} 2. Nf3 {[%clk 0:03:00.6]}
2... Nc6 {[%clk 0:03:00.3]} 3. Bb5 {[%clk 0:02:59.1]} 3... a6 {[%clk 0:02:59.9]}
4. Ba4 {[%clk 0:02:59.5]} 4... Nf6 {[%clk 0:02:59.5]} 5. O-O {[%clk 0:02:59.7]}
5... Be7 {[%clk 0:02:59.2]} 6. Re1 {[%clk 0:03:00.2]} 6... b5 {[%clk 0:02:58.6]}
7. Bb3 {[%clk 0:03:00.5]} 7... d6 {[%clk 0:02:58.5]} 8. c3 {[%clk 0:03:00]} 8...
O-O {[%clk 0:02:58.6]} 9. h3 {[%clk 0:02:59.9]} 9... Nb8 {[%clk 0:02:49]} 10. d4
{[%clk 0:02:59.7]} 10... Nbd7 {[%clk 0:02:49.7]} 11. Nbd2 {[%clk 0:02:58.6]}
11... Bb7 {[%clk 0:02:49.5]} 12. Bc2 {[%clk 0:02:57.5]} 12... Re8 {[%clk
0:02:49]} 13. Nf1 {[%clk 0:02:57.9]} 13... Bf8 {[%clk 0:02:48.8]} 14. Ng3 {[%clk
0:02:57.9]} 14... g6 {[%clk 0:02:48]} 15. Bd2 {[%clk 0:02:58]} 15... Bg7 {[%clk
0:02:32.6]} 16. Qc1 {[%clk 0:02:55.7]} 16... Rb8 {[%clk 0:02:12.6]} 17. a4
{[%clk 0:02:43.6]} 17... c5 {[%clk 0:02:00.8]} 18. d5 {[%clk 0:02:29.9]} 18...
c4 {[%clk 0:02:01.1]} 19. Be3 {[%clk 0:02:21.6]} 19... Qc7 {[%clk 0:01:56.2]}
20. Ra3 {[%clk 0:02:12.4]} 20... Nc5 {[%clk 0:01:55.1]} 21. Qd2 {[%clk
0:02:09.9]} 21... Bc8 {[%clk 0:01:41.7]} 22. axb5 {[%clk 0:01:59.4]} 22... axb5
{[%clk 0:01:42.6]} 23. Rea1 {[%clk 0:01:59.5]} 23... Bd7 {[%clk 0:01:41.6]} 24.
Ra7 {[%clk 0:01:56.1]} 24... Rb7 {[%clk 0:01:30.4]} 25. Bxc5 {[%clk 0:01:47.2]}
25... dxc5 {[%clk 0:01:31.3]} 26. R7a6 {[%clk 0:01:38]} 26... Rb6 {[%clk
0:01:29.3]} 27. Ra7 {[%clk 0:01:37.1]} 27... Rb7 {[%clk 0:01:28.5]} 28. R7a6
{[%clk 0:01:35.3]} 28... Rb6 {[%clk 0:01:27.3]} 29. Ra7 {[%clk 0:01:28.7]} 29...
Qd6 {[%clk 0:01:17.4]} 30. Nf1 {[%clk 0:01:24.5]} 30... Reb8 {[%clk 0:01:11.1]}
31. Qg5 {[%clk 0:01:05.4]} 31... Nh5 {[%clk 0:00:47.2]} 32. N1h2 {[%clk
0:00:44.4]} 32... h6 {[%clk 0:00:40.5]} 33. Qe3 {[%clk 0:00:40.9]} 33... Nf4
{[%clk 0:00:38.6]} 34. h4 {[%clk 0:00:35.5]} 34... R8b7 {[%clk 0:00:29.3]} 35.
g3 {[%clk 0:00:32.9]} 35... Nh5 {[%clk 0:00:29.4]} 36. Rxb7 {[%clk 0:00:24.5]}
36... Rxb7 {[%clk 0:00:29.3]} 37. Ra8+ {[%clk 0:00:22.8]} 37... Kh7 {[%clk
0:00:27.5]} 38. Qc1 {[%clk 0:00:21.4]} 38... Nf6 {[%clk 0:00:22.4]} 39. Qa1
{[%clk 0:00:20]} 39... b4 {[%clk 0:00:17.4]} 40. Nd2 {[%clk 0:00:19]} 40... Bb5
{[%clk 0:00:12.3]} 41. Nhf1 {[%clk 0:00:18.4]} 41... Ng4 {[%clk 0:00:08]} 42.
Bd1 {[%clk 0:00:18.6]} 42... h5 {[%clk 0:00:06.1]} 43. Bxg4 {[%clk 0:00:18.2]}
43... hxg4 {[%clk 0:00:07]} 44. Ne3 {[%clk 0:00:17.8]} 44... Bh6 {[%clk
0:00:07.1]} 45. Ndxc4 {[%clk 0:00:16.1]} 45... Bxc4 {[%clk 0:00:04.6]} 46. Nxc4
{[%clk 0:00:16]} 46... Qf6 {[%clk 0:00:05.4]} 47. Qa6 {[%clk 0:00:13.1]} 47...
Qxa6 {[%clk 0:00:02.5]} 48. Rxa6 {[%clk 0:00:14]} 48... bxc3 {[%clk 0:00:02.6]}
49. bxc3 {[%clk 0:00:14.9]} 49... Rb3 {[%clk 0:00:01.9]} 50. Nxe5 {[%clk
0:00:15]} 50... Rxc3 {[%clk 0:00:01.6]} 51. Nxf7 {[%clk 0:00:15.2]} 51... Bg7
{[%clk 0:00:01.4]} 52. Ng5+ {[%clk 0:00:15.4]} 52... Kh6 {[%clk 0:00:01.8]} 53.
Ra7 {[%clk 0:00:15.4]} 53... Rd3 {[%clk 0:00:01.3]} 54. d6 {[%clk 0:00:14.7]}
54... c4 {[%clk 0:00:01.4]} 55. d7 {[%clk 0:00:15.2]} 55... c3 {[%clk
0:00:01.9]} 56. d8=Q {[%clk 0:00:14.6]} 1-0

[Event "Late-Titled-Tuesday-Blitz-February-20-2024"]
[Site "Chess.com"]
[Date "2024.02.20"]
[Round "5"]
[White "MusicCityMaster"]
[Black "jamengrand"]
[Result "1-0"]
[WhiteElo "2551"]
[BlackElo "2343"]
[TimeControl "180+1"]
[EndTime "14:56:25 PST"]
[Termination "MusicCityMaster won on time"]

1. d4 {[%clk 0:03:00.9]} 1... d5 {[%clk 0:02:59.6]} 2. c4 {[%clk 0:03:00.5]}
2... e6 {[%clk 0:02:59.4]} 3. Nf3 {[%clk 0:02:58.3]} 3... Nf6 {[%clk 0:02:59.6]}
4. Bg5 {[%clk 0:02:55.7]} 4... Be7 {[%clk 0:02:57.3]} 5. e3 {[%clk 0:02:55.7]}
5... b6 {[%clk 0:02:56.9]} 6. cxd5 {[%clk 0:02:55.3]} 6... Nxd5 {[%clk
0:02:56.1]} 7. Bxe7 {[%clk 0:02:54.9]} 7... Qxe7 {[%clk 0:02:56]} 8. Nc3 {[%clk
0:02:51.1]} 8... Nxc3 {[%clk 0:02:53.5]} 9. bxc3 {[%clk 0:02:51.1]} 9... O-O
{[%clk 0:02:52.1]} 10. Bd3 {[%clk 0:02:50.1]} 10... Bb7 {[%clk 0:02:51.8]} 11.
O-O {[%clk 0:02:44.8]} 11... c5 {[%clk 0:02:51.9]} 12. Qe2 {[%clk 0:02:32.5]}
12... Nd7 {[%clk 0:02:48]} 13. a4 {[%clk 0:02:29.9]} 13... e5 {[%clk 0:02:44.4]}
14. e4 {[%clk 0:02:19.5]} 14... cxd4 {[%clk 0:02:40.1]} 15. cxd4 {[%clk
0:02:20.4]} 15... exd4 {[%clk 0:02:40.2]} 16. Nxd4 {[%clk 0:02:18.6]} 16... g6
{[%clk 0:02:09.5]} 17. Rfe1 {[%clk 0:02:09.4]} 17... Rad8 {[%clk 0:01:58.9]} 18.
Bb5 {[%clk 0:01:47.8]} 18... Nc5 {[%clk 0:01:51.5]} 19. Nc6 {[%clk 0:01:35.6]}
19... Bxc6 {[%clk 0:01:51.8]} 20. Bxc6 {[%clk 0:01:36.4]} 20... Rd6 {[%clk
0:01:36.9]} 21. Bd5 {[%clk 0:01:32.8]} 21... Re8 {[%clk 0:01:34.4]} 22. Qc4
{[%clk 0:01:23.1]} 22... Kg7 {[%clk 0:01:19]} 23. a5 {[%clk 0:01:22.5]} 23...
Qe5 {[%clk 0:01:02]} 24. axb6 {[%clk 0:01:18.7]} 24... axb6 {[%clk 0:01:02.9]}
25. h3 {[%clk 0:01:10.4]} 25... Re7 {[%clk 0:00:49.1]} 26. Rab1 {[%clk
0:00:53.3]} 26... Rf6 {[%clk 0:00:48.7]} 27. Re2 {[%clk 0:00:40.6]} 27... h5
{[%clk 0:00:47.8]} 28. Rbe1 {[%clk 0:00:30.3]} 28... h4 {[%clk 0:00:47.5]} 29.
Qb5 {[%clk 0:00:26.1]} 29... Ra7 {[%clk 0:00:33.8]} 30. Qc4 {[%clk 0:00:21.9]}
30... Ra3 {[%clk 0:00:32.8]} 31. Ra2 {[%clk 0:00:16.3]} 31... Rc3 {[%clk
0:00:32.6]} 32. Qe2 {[%clk 0:00:13.1]} 32... Rf4 {[%clk 0:00:27]} 33. Ra7 {[%clk
0:00:12.7]} 33... Qg5 {[%clk 0:00:25.7]} 34. Rf1 {[%clk 0:00:10]} 34... Rxh3
{[%clk 0:00:24.7]} 35. e5 {[%clk 0:00:10.1]} 35... Rd3 {[%clk 0:00:19.2]} 36.
Bc4 {[%clk 0:00:09.9]} 36... Rxc4 {[%clk 0:00:17.8]} 37. e6 {[%clk 0:00:10.5]}
37... Re4 {[%clk 0:00:14.4]} 38. Rxf7+ {[%clk 0:00:10]} 38... Kh6 {[%clk
0:00:14.9]} 39. Qb2 {[%clk 0:00:09.9]} 39... Qe5 {[%clk 0:00:13.8]} 40. Qc1+
{[%clk 0:00:08.4]} 40... g5 {[%clk 0:00:11.7]} 41. e7 {[%clk 0:00:08.4]} 41...
Rd5 {[%clk 0:00:08.5]} 42. Qb1 {[%clk 0:00:06.5]} 42... Nd3 {[%clk 0:00:08.5]}
43. Qxb6+ {[%clk 0:00:06]} 43... Qe6 {[%clk 0:00:09]} 44. Rf6+ {[%clk
0:00:04.7]} 44... Qxf6 {[%clk 0:00:07]} 45. Qxf6+ {[%clk 0:00:05.6]} 45... Kh5
{[%clk 0:00:07.5]} 46. Qf7+ {[%clk 0:00:05.9]} 46... Kh6 {[%clk 0:00:07.2]} 47.
e8=Q {[%clk 0:00:05.6]} 47... Rxe8 {[%clk 0:00:05.1]} 48. Qxe8 {[%clk
0:00:06.5]} 48... Nf4 {[%clk 0:00:05.4]} 49. Qf8+ {[%clk 0:00:06.7]} 49... Kg6
{[%clk 0:00:05]} 50. Qe8+ {[%clk 0:00:07]} 50... Kh6 {[%clk 0:00:04.4]} 51. Qe4
{[%clk 0:00:06.8]} 51... Kg7 {[%clk 0:00:02.9]} 52. Rb1 {[%clk 0:00:06.8]} 52...
Rd7 {[%clk 0:00:02.8]} 53. Qe5+ {[%clk 0:00:06.4]} 53... Kh6 {[%clk 0:00:03.2]}
54. Rb6+ {[%clk 0:00:06.6]} 54... Kh5 {[%clk 0:00:03.1]} 55. Qf5 {[%clk
0:00:06.5]} 55... Rd1+ {[%clk 0:00:03.2]} 56. Kh2 {[%clk 0:00:07]} 1-0